bitfinex/quotes_BTCUSD_20250802
["timestamp","ask_amount","ask_price","bid_price","bid_amount"]
[1754146101693,0.78101186,113320.0,113310.0,0.28234576]
[1754146101934,1.13397911,113320.0,113310.0,0.28234576]
[1754146102162,0.7948268,113320.0,113310.0,0.28234576]
[1754146102407,1.14779405,113320.0,113310.0,0.28234576]
[1754146102864,1.14779405,113320.0,113310.0,0.05842587]
[1754146103354,1.14779405,113320.0,113310.0,0.14388]
[1754146103601,0.78101186,113320.0,113310.0,0.14388]
[1754146103833,1.13397911,113320.0,113310.0,0.14388]
[1754146104057,1.27481911,113320.0,113310.0,0.00304]
[1754146107756,1.30136311,113320.0,113310.0,4e-05]
[1754146108223,1.30136311,113320.0,113310.0,0.00104]
[1754146110951,0.94839586,113320.0,113310.0,0.00104]
[1754146111203,1.30136311,113320.0,113310.0,0.00104]
[1754146112146,1.16052311,113320.0,113310.0,0.00104]
[1754146112374,1.30100311,113320.0,113310.0,0.00104]
[1754146114289,0.80755586,113320.0,113310.0,0.00104]
[1754146114535,1.30108311,113320.0,113310.0,0.00104]
[1754146115707,1.30108311,113320.0,113310.0,0.00635]
[1754146115708,0.80255586,113320.0,113310.0,0.00635]
[1754146115936,0.72607186,113320.0,113310.0,0.05622]
[1754146116152,0.72607186,113320.0,113310.0,0.09715118]
[1754146116601,1.08108911,113320.0,113310.0,0.09394118]
[1754146116828,1.13613911,113320.0,113310.0,0.00104]
[1754146118184,0.73136186,113320.0,113310.0,0.05091]
[1754146118397,0.72607186,113320.0,113310.0,0.05622]
[1754146118811,0.73988766,113320.0,113310.0,0.05622]
[1754146122015,1.09490491,113320.0,113310.0,0.05301]
[1754146122245,1.09814491,113320.0,113310.0,0.05676511]
[1754146122942,0.37207305,113320.0,113310.0,0.05676511]
[1754146124012,0.42381305,113320.0,113310.0,0.00689511]
[1754146125077,0.42381305,113320.0,113310.0,0.00910144]
[1754146126358,0.0708458,113320.0,113310.0,0.00910144]
[1754146126607,0.42381305,113320.0,113310.0,0.00910144]
[1754146126809,0.0708458,113320.0,113310.0,0.00910144]
[1754146127026,0.37207305,113320.0,113310.0,0.05897144]
[1754146127240,0.0191058,113320.0,113310.0,0.05897144]
[1754146127460,0.36883305,113320.0,113310.0,0.05897144]
[1754146127694,0.36883305,113320.0,113310.0,0.06107144]
[1754146128895,0.37207305,113320.0,113310.0,0.05897144]
[1754146129597,0.42381305,113320.0,113310.0,0.00910144]
[1754146130084,0.42381305,113320.0,113310.0,0.00689511]
[1754146130525,0.40999725,113320.0,113310.0,0.00104]
[1754146131173,0.05703,113320.0,113310.0,0.00104]
[1754146131407,0.41220272,113320.0,113310.0,0.00104]
[1754146131616,0.40999725,113320.0,113310.0,0.00104]
[1754146132465,0.45999725,113320.0,113310.0,0.00104]
[1754146133333,0.47381499,113320.0,113310.0,0.00104]
[1754146133778,1.56699299,113320.0,113310.0,0.00104]
[1754146134421,1.59199299,113320.0,113310.0,0.00104]
[1754146134651,1.70307364,113320.0,113310.0,0.00104]
[1754146134878,2.0292559,113320.0,113310.0,0.00104]
[1754146135102,2.03542198,113320.0,113310.0,0.00104]
[1754146136267,1.95122209,113320.0,113310.0,4e-05]
[1754146136754,1.95222209,113320.0,113310.0,4e-05]
[1754146136977,1.95122209,113320.0,113310.0,4e-05]
[1754146137854,1.9650426,113320.0,113310.0,4e-05]
[1754146138297,2.1072026,113320.0,113310.0,4e-05]
[1754146139124,2.19140249,113320.0,113310.0,4e-05]
[1754146139996,2.19960325,113320.0,113310.0,4e-05]
[1754146140833,2.1072026,113320.0,113310.0,4e-05]
[1754146141265,2.13473779,113320.0,113310.0,4e-05]
[1754146141804,2.13373779,113320.0,113310.0,4e-05]
[1754146142018,1.04055979,113320.0,113310.0,4e-05]
[1754146142254,2.13373575,113320.0,113310.0,4e-05]
[1754146142705,2.13573575,113320.0,113310.0,4e-05]
[1754146142982,1.7827685,113320.0,113310.0,4e-05]
[1754146143191,2.13573575,113320.0,113310.0,4e-05]
[1754146143455,1.04255775,113320.0,113310.0,4e-05]
[1754146143697,2.21993564,113320.0,113310.0,4e-05]
[1754146144134,1.86696839,113320.0,113310.0,4e-05]
[1754146144354,2.13573575,113320.0,113310.0,4e-05]
[1754146145822,2.15318477,113320.0,113310.0,4e-05]
[1754146146595,2.16136946,113320.0,113310.0,4e-05]
[1754146147780,2.38452001,113320.0,113310.0,4e-05]
[1754146148064,2.47127457,113320.0,113310.0,4e-05]
[1754146148535,2.49013289,113320.0,113310.0,4e-05]
[1754146149007,2.48813289,113320.0,113310.0,4e-05]
[1754146149475,2.49113289,113320.0,113310.0,4e-05]
[1754146150396,2.48913289,113320.0,113310.0,4e-05]
[1754146150668,2.49213289,113320.0,113310.0,4e-05]
[1754146150907,2.5059552,113320.0,113310.0,4e-05]
[1754146151131,3.13761267,113320.0,113310.0,4e-05]
[1754146151873,3.11366389,113320.0,113310.0,4e-05]
[1754146153045,2.97350389,113320.0,113310.0,4e-05]
[1754146153280,2.46582665,113320.0,113310.0,4e-05]
[1754146153522,2.642318,113320.0,113310.0,4e-05]
[1754146153766,2.99686337,113320.0,113310.0,4e-05]
[1754146154020,2.99682337,113320.0,113310.0,4e-05]
[1754146154242,3.0998696,113320.0,113310.0,4e-05]
[1754146154953,3.0998337,113320.0,113310.0,4e-05]
[1754146155671,3.12378248,113320.0,113310.0,4e-05]
[1754146156386,2.13915776,113320.0,113310.0,4e-05]
[1754146156637,3.13760419,113320.0,113310.0,4e-05]
[1754146157779,3.0534043,113320.0,113310.0,4e-05]
[1754146158010,3.02945552,113320.0,113310.0,4e-05]
[1754146158276,2.70124728,113320.0,113310.0,4e-05]
[1754146158878,2.52475593,113320.0,113310.0,4e-05]
[1754146159100,2.28941649,113320.0,113310.0,0.0516]
[1754146159299,2.51381638,113320.0,113310.0,0.05484]
[1754146159485,2.51384382,113320.0,113310.0,0.05484]
[1754146159703,2.48129284,113320.0,113310.0,0.05484]
[1754146159911,2.53129284,113320.0,113310.0,0.05484]
[1754146160133,2.53129284,113320.0,113310.0,0.0516]
[1754146160358,2.42821917,113320.0,113310.0,0.05484]
[1754146160566,2.06112917,113320.0,113310.0,0.05484]
[1754146160784,2.00232155,113320.0,113310.0,0.05484]
[1754146161028,2.34232155,113320.0,113310.0,0.05484]
[1754146161266,2.39232155,113320.0,113310.0,0.05484]
[1754146161683,2.22716155,113320.0,113310.0,0.05484]
[1754146161909,1.72411331,113320.0,113310.0,0.05484]
[1754146162114,2.06411331,113320.0,113310.0,0.05484]
[1754146162352,2.39232155,113320.0,113310.0,0.05484]
[1754146162555,2.38414235,113320.0,113310.0,0.05484]
[1754146162767,2.46834224,113320.0,113310.0,0.05484]
[1754146162982,2.47654633,113320.0,113310.0,0.05484]
[1754146163418,2.53260713,113320.0,113310.0,4e-05]
[1754146163643,2.55531755,113320.0,113310.0,4e-05]
[1754146163866,1.44831784,113320.0,113310.0,4e-05]
[1754146164267,2.38385553,113320.0,113310.0,0.04961]
[1754146164479,2.38061553,113320.0,113310.0,0.04961]
[1754146165170,1.72419905,113320.0,113310.0,0.04961]
[1754146165383,2.38061553,113320.0,113310.0,0.05159]
[1754146165807,2.38061553,113320.0,113310.0,0.0547]
[1754146166035,2.39703594,113320.0,113310.0,0.0547]
[1754146166466,1.74062823,113320.0,113310.0,0.0547]
[1754146166675,2.39704471,113320.0,113310.0,0.0547]
[1754146166892,2.4812446,113320.0,113310.0,0.05159]
[1754146167397,2.4812446,113320.0,113310.0,0.04961]
[1754146167629,2.55060362,113320.0,113310.0,4e-05]
[1754146168084,2.56442368,113320.0,113310.0,4e-05]
[1754146168511,2.51555368,113320.0,113310.0,4e-05]
[1754146169622,2.56442368,113320.0,113310.0,4e-05]
[1754146170059,2.43135379,113320.0,113310.0,4e-05]
[1754146171613,2.48022379,113320.0,113310.0,4e-05]
[1754146172082,2.48022453,113320.0,113310.0,4e-05]
[1754146173027,2.92662453,113320.0,113310.0,4e-05]
[1754146173749,2.94554407,113320.0,113310.0,4e-05]
[1754146173996,2.89667407,113320.0,113310.0,4e-05]
[1754146174211,2.87775453,113320.0,113310.0,0.04821]
[1754146174456,2.980874,113320.0,113310.0,0.04821]
[1754146175134,1.78457653,113320.0,113310.0,0.04821]
[1754146175350,2.89667477,113320.0,113310.0,0.04821]
[1754146175575,2.92662453,113320.0,113310.0,4e-05]
[1754146176249,3.27375389,113320.0,113310.0,4e-05]
[1754146176477,1.433178,113310.0,113290.0,0.04620008]
[1754146176695,0.575,113290.0,113280.0,0.00311]
[1754146176919,1.97323222,113290.0,113280.0,0.0051379]
[1754146177362,1.97323222,113290.0,113280.0,4.79e-05]
[1754146177602,2.02156966,113290.0,113280.0,4.79e-05]
[1754146177813,2.11119776,113290.0,113280.0,4.79e-05]
[1754146178240,2.13582707,113290.0,113280.0,4.79e-05]
[1754146178475,2.11940759,113290.0,113280.0,4.79e-05]
[1754146178693,2.06892759,113290.0,113280.0,4.79e-05]
[1754146178967,2.06892759,113290.0,113280.0,0.0482179]
[1754146179175,0.98912718,113290.0,113280.0,0.0482179]
[1754146179391,2.04317717,113290.0,113280.0,0.0482179]
[1754146179646,2.03496734,113290.0,113280.0,0.0482179]
[1754146179868,2.0487901,113290.0,113280.0,0.0501979]
[1754146180797,2.04878784,113290.0,113280.0,0.0501979]
[1754146181058,1.39237136,113290.0,113280.0,0.0501979]
[1754146181321,2.04878784,113290.0,113280.0,0.0501979]
[1754146181606,2.04878784,113290.0,113280.0,0.0521979]
[1754146182385,2.00767974,113290.0,113280.0,0.0553079]
[1754146182604,0.91450174,113290.0,113280.0,0.0553079]
[1754146183103,2.00767974,113290.0,113280.0,0.0533079]
[1754146183550,2.00767974,113290.0,113280.0,0.0553079]
[1754146183993,1.99385698,113290.0,113280.0,0.0553079]
[1754146184212,2.07805687,113290.0,113280.0,0.0553079]
[1754146184857,2.08001687,113290.0,113280.0,0.0553079]
[1754146185070,2.08001687,113290.0,113280.0,0.0563079]
[1754146185302,0.98683887,113290.0,113280.0,0.0563079]
[1754146185521,2.08001687,113290.0,113280.0,0.0563079]
[1754146185969,2.06060785,113290.0,113280.0,0.0563079]
[1754146186690,2.06256785,113290.0,113280.0,0.0563079]
[1754146188009,2.07639052,113290.0,113280.0,0.0563079]
[1754146188903,2.07639052,113290.0,113280.0,0.0531979]
[1754146189344,0.98321252,113290.0,113280.0,0.0531979]
[1754146189568,1.99219063,113290.0,113280.0,0.0563079]
[1754146190709,1.94219063,113290.0,113280.0,0.0563079]
[1754146190925,1.99219063,113290.0,113280.0,0.0563079]
[1754146191361,0.89901263,113290.0,113280.0,0.0563079]
[1754146191575,1.99023063,113290.0,113280.0,0.0563079]
[1754146191990,1.98991063,113290.0,113280.0,0.0563079]
[1754146192634,2.07411052,113290.0,113280.0,0.0563079]
[1754146193297,1.98991063,113290.0,113280.0,0.0563079]
[1754146193970,1.97861715,113290.0,113280.0,0.0563079]
[1754146194194,1.99135248,113290.0,113280.0,0.0563079]
[1754146194917,1.99115248,113290.0,113280.0,0.0563079]
[1754146195350,1.66294424,113290.0,113280.0,0.0563079]
[1754146195558,0.56976624,113290.0,113280.0,0.0563079]
[1754146195673,1.66294424,113290.0,113280.0,0.0563079]
[1754146196288,1.99115248,113290.0,113280.0,0.0563079]
[1754146196736,1.99099248,113290.0,113280.0,0.0563079]
[1754146196935,2.0048148,113290.0,113280.0,0.0563079]
[1754146197865,1.8649748,113290.0,113280.0,0.0563079]
[1754146198066,2.0048148,113290.0,113280.0,0.0563079]
[1754146199027,2.09101469,113290.0,113280.0,0.0563079]
[1754146199462,2.0068148,113290.0,113280.0,0.0563079]
[1754146200512,2.0068148,113290.0,113280.0,0.0531979]
[1754146200713,2.0606748,113290.0,113280.0,0.0512179]
[1754146201134,2.0098348,113290.0,113280.0,0.0512179]
[1754146201712,1.35341832,113290.0,113280.0,0.0512179]
[1754146201976,1.68162656,113290.0,113280.0,0.0512179]
[1754146202148,2.14487469,113290.0,113280.0,0.0030479]
[1754146202575,2.14495469,113290.0,113280.0,0.0030479]
[1754146202800,1.35349832,113290.0,113280.0,0.0560879]
[1754146202994,1.35349832,113290.0,113280.0,0.0581379]
[1754146202995,1.67868656,113290.0,113280.0,0.0581379]
[1754146203636,1.67868656,113290.0,113280.0,0.0571379]
[1754146203996,1.68270656,113290.0,113280.0,0.0530879]
[1754146204413,1.73354656,113290.0,113280.0,0.0530879]
[1754146204614,1.73354656,113290.0,113280.0,4.79e-05]
[1754146204864,2.0617548,113290.0,113280.0,4.79e-05]
[1754146205189,2.0109148,113290.0,113280.0,0.0530879]
[1754146205428,1.68270656,113290.0,113280.0,0.0530879]
[1754146205870,1.68886986,113290.0,113280.0,0.0530879]
[1754146206081,1.54392986,113290.0,113280.0,0.0581779]
[1754146206312,1.67006754,113290.0,113280.0,0.06379469]
[1754146206728,1.67006754,113290.0,113280.0,0.0581779]
[1754146207786,1.64494754,113290.0,113280.0,0.0581779]
[1754146208003,1.3417393,113290.0,113280.0,0.0581779]
[1754146208228,1.66994754,113290.0,113280.0,0.0581779]
[1754146208439,1.1768993,113290.0,113280.0,0.0581779]
[1754146208589,2.00994754,113290.0,113280.0,0.06399969]
[1754146208805,1.6817393,113290.0,113280.0,0.06399969]
[1754146209001,2.02376942,113290.0,113280.0,0.06399969]
[1754146209268,1.96760612,113290.0,113280.0,0.06399969]
[1754146209526,1.47455788,113290.0,113280.0,0.06399969]
[1754146209729,1.32455788,113290.0,113280.0,0.06399969]
[1754146210716,1.32455788,113290.0,113280.0,0.0581779]
[1754146211710,1.32355788,113290.0,113280.0,0.0581779]
[1754146212169,1.34855788,113290.0,113280.0,0.0581779]
[1754146212374,0.25537988,113290.0,113280.0,0.0591779]
[1754146212585,0.18025988,113290.0,113280.0,0.0621779]
[1754146212796,0.04037988,113290.0,113280.0,0.10122051]
[1754146213015,0.02876347,113290.0,113280.0,0.10122051]
[1754146213437,0.026558,113290.0,113280.0,0.10122051]
[1754146213886,0.026558,113290.0,113280.0,0.42942875]
[1754146214099,0.63984,113300.0,113280.0,0.42942875]
[1754146214311,0.216348,113310.0,113290.0,0.05608]
[1754146214521,0.00220547,113300.0,113290.0,0.09598288]
[1754146214737,0.00220547,113300.0,113290.0,0.09803288]
[1754146215181,0.00220547,113300.0,113290.0,0.10107288]
[1754146215590,0.00220547,113310.0,113290.0,0.10107288]
[1754146215798,0.00220547,113310.0,113300.0,0.05608]
[1754146216028,0.00220547,113310.0,113300.0,0.06823729]
[1754146216228,0.51602355,113310.0,113300.0,0.06823729]
[1754146216438,0.51381808,113310.0,113300.0,0.06823729]
[1754146217120,0.51381808,113310.0,113300.0,0.39644553]
[1754146218728,0.51381808,113310.0,113300.0,0.06823729]
[1754146218935,0.51381808,113310.0,113300.0,0.07023729]
[1754146219154,0.51381808,113310.0,113300.0,0.21195729]
[1754146221505,0.51381808,113310.0,113300.0,0.21187729]
[1754146223465,0.51381808,113310.0,113300.0,0.07223729]
[1754146223685,0.51381808,113310.0,113300.0,0.21175729]
[1754146224109,0.51381808,113310.0,113300.0,0.07223729]
[1754146224354,0.34402632,113310.0,113300.0,0.21175729]
[1754146224843,0.84402632,113310.0,113300.0,0.20871729]
[1754146225069,0.34402632,113310.0,113300.0,0.20871729]
[1754146225508,0.51581808,113310.0,113300.0,0.20871729]
[1754146225724,0.34402632,113310.0,113300.0,0.20871729]
[1754146226794,0.34402632,113310.0,113300.0,0.21164729]
[1754146227006,0.01581808,113310.0,113300.0,0.21164729]
[1754146227245,0.01802355,113310.0,113300.0,0.21164729]
[1754146228179,0.01381808,113310.0,113300.0,0.21164729]
[1754146228631,0.01602355,113310.0,113300.0,0.21164729]
[1754146228850,0.01381808,113310.0,113300.0,0.21164729]
[1754146229076,0.01381808,113310.0,113300.0,0.53985553]
[1754146229601,0.5,113320.0,113300.0,0.62405542]
[1754146229781,0.5,113320.0,113310.0,0.32820824]
[1754146229997,0.5,113320.0,113310.0,0.44711378]
[1754146231516,0.5,113320.0,113310.0,0.53131367]
[1754146231998,0.5,113320.0,113310.0,0.20310543]
[1754146232227,0.5,113320.0,113310.0,0.46890813]
[1754146232739,0.51381537,113320.0,113310.0,0.46890813]
[1754146233448,0.51381537,113320.0,113310.0,0.19594]
[1754146233706,0.5,113320.0,113310.0,0.19594]
[1754146233918,0.5,113320.0,113310.0,0.19794]
[1754146234132,0.5,113320.0,113310.0,0.21874473]
[1754146234341,0.50315,113330.0,113310.0,0.21874473]
[1754146234552,0.83135824,113330.0,113310.0,0.16715473]
[1754146234766,0.00315,113330.0,113320.0,0.05159]
[1754146234982,0.33557371,113330.0,113320.0,0.05159]
[1754146235186,0.33336824,113330.0,113320.0,0.19884247]
[1754146235405,0.83336824,113330.0,113320.0,0.19884247]
[1754146235607,0.33336824,113330.0,113320.0,0.19884247]
[1754146235844,0.83336824,113330.0,113320.0,0.19884247]
[1754146236058,0.33021824,113330.0,113320.0,0.19889037]
[1754146236480,0.83021824,113330.0,113320.0,0.19889037]
[1754146237152,0.50201,113330.0,113320.0,0.19889037]
[1754146237397,0.83336824,113330.0,113320.0,0.19889037]
[1754146237618,0.83336824,113330.0,113320.0,0.14738037]
[1754146237619,0.55306,113330.0,113320.0,0.14738037]
[1754146237836,0.88126824,113330.0,113320.0,0.14738037]
[1754146238033,0.89508398,113330.0,113320.0,0.14738037]
[1754146239169,0.56687574,113330.0,113320.0,0.14738037]
[1754146239382,0.89508398,113330.0,113320.0,0.14738037]
[1754146240446,0.90123083,113330.0,113320.0,0.14738037]
[1754146240661,0.90123083,113330.0,113320.0,0.00778037]
[1754146240880,0.97623083,113330.0,113320.0,0.1395279]
[1754146241094,2.06940883,113330.0,113320.0,0.1395279]
[1754146242163,1.74120059,113330.0,113320.0,0.1395279]
[1754146242391,2.06940883,113330.0,113320.0,0.1395279]
[1754146242595,2.06940883,113330.0,113320.0,0.15863969]
[1754146243025,0.92518083,113330.0,113320.0,0.21022969]
[1754146243233,0.90018083,113330.0,113320.0,0.21022969]
[1754146243447,0.57197259,113330.0,113320.0,0.21220969]
[1754146243676,0.95172483,113330.0,113320.0,0.21220969]
[1754146243887,1.00277483,113330.0,113320.0,0.15863969]
[1754146244338,0.50277483,113330.0,113320.0,0.15863969]
[1754146244774,1.59595283,113330.0,113320.0,0.15863969]
[1754146244996,1.26774459,113330.0,113320.0,0.15863969]
[1754146245203,1.58213709,113330.0,113320.0,0.15863969]
[1754146246311,1.18102885,113330.0,113320.0,0.15863969]
[1754146246596,0.08470085,113330.0,113320.0,0.21513969]
[1754146246802,0.41511456,113330.0,113320.0,0.21220969]
[1754146247016,0.08470085,113330.0,113320.0,0.21220969]
[1754146247233,0.41511456,113330.0,113320.0,0.21220969]
[1754146247451,0.41290909,113330.0,113320.0,0.21220969]
[1754146248340,0.03269085,113330.0,113320.0,0.21513969]
[1754146248556,0.00835232,113330.0,113320.0,0.21513969]
[1754146248779,0.00614685,113330.0,113320.0,0.54334793]
[1754146249443,0.01996226,113330.0,113320.0,0.54334793]
[1754146251064,0.01381541,113330.0,113320.0,0.54334793]
[1754146251287,0.01381541,113330.0,113320.0,0.54534793]
[1754146251948,0.01381541,113330.0,113320.0,0.54834793]
[1754146253765,0.01381541,113330.0,113320.0,0.64999684]
[1754146253994,0.01381541,113330.0,113320.0,0.3217886]
[1754146254255,0.5,113340.0,113320.0,0.64999684]
[1754146254471,0.5,113340.0,113330.0,0.15837485]
[1754146254693,1.22607186,113350.0,113330.0,0.52096254]
[1754146254909,1.22607186,113350.0,113340.0,0.53474726]
[1754146255127,1.22607186,113350.0,113340.0,0.62098715]
[1754146256002,1.22607186,113350.0,113340.0,0.29277891]
[1754146256517,1.22607186,113350.0,113340.0,0.29677891]
[1754146256760,1.72607186,113350.0,113340.0,0.36520372]
[1754146256965,1.72818186,113350.0,113340.0,0.26351481]
[1754146257184,1.72818186,113350.0,113340.0,0.19509]
[1754146257404,1.72607186,113350.0,113340.0,0.19509]
[1754146258292,1.72607186,113350.0,113340.0,0.05665]
[1754146258482,1.72607186,113350.0,113340.0,0.19613]
[1754146258697,1.73988439,113350.0,113340.0,0.19613]
[1754146258903,1.73988439,113350.0,113340.0,0.25180377]
[1754146260234,1.73988439,113350.0,113340.0,0.11232377]
[1754146260450,1.74199439,113350.0,113340.0,0.24863377]
[1754146261944,1.73988439,113350.0,113340.0,0.58001201]
[1754146262682,1.73988439,113350.0,113340.0,0.25168377]
[1754146264561,1.23988439,113350.0,113340.0,0.25168377]
[1754146264801,1.23988439,113350.0,113340.0,0.68154092]
[1754146265046,1.23988439,113350.0,113340.0,0.35333268]
[1754146267331,1.22607186,113350.0,113340.0,0.21397268]
[1754146267576,1.22818186,113350.0,113340.0,0.24851377]
[1754146267806,1.23117186,113350.0,113340.0,0.14436]
[1754146268019,1.23117186,113350.0,113340.0,0.1908]
[1754146268211,1.22818186,113350.0,113340.0,0.1908]
[1754146268672,1.22818186,113350.0,113340.0,0.19076]
[1754146268892,1.22818186,113350.0,113340.0,0.1928]
[1754146269117,1.22607186,113350.0,113340.0,0.57930185]
[1754146270283,1.23988435,113350.0,113340.0,0.25109361]
[1754146270507,1.24199435,113350.0,113340.0,0.25109361]
[1754146271012,1.23988435,113350.0,113340.0,0.35274252]
[1754146271251,1.23988435,113350.0,113340.0,0.68095076]
[1754146271487,1.24199435,113350.0,113340.0,0.35274252]
[1754146271734,1.24199435,113350.0,113340.0,0.34957252]
[1754146271983,1.29190435,113350.0,113340.0,0.19944361]
[1754146272446,1.29190435,113350.0,113340.0,0.14432]
[1754146272920,0.79190435,113350.0,113340.0,0.14432]
[1754146273161,0.74199435,113350.0,113340.0,0.1928]
[1754146273399,0.73988435,113350.0,113340.0,0.19597]
[1754146273887,0.73988435,113350.0,113340.0,0.52417824]
[1754146274124,0.54114594,113350.0,113340.0,0.25109361]
[1754146274356,0.54114594,113350.0,113340.0,0.52417824]
[1754146274803,0.54325594,113350.0,113340.0,0.1928]
[1754146275230,0.54624594,113350.0,113340.0,0.14432]
[1754146275449,0.54624594,113350.0,113340.0,0.19076]
[1754146275668,0.54325594,113350.0,113340.0,0.1928]
[1754146275895,0.54114594,113350.0,113340.0,0.57930185]
[1754146276788,0.32278615,113350.0,113340.0,0.57930185]
[1754146277053,0.32278615,113350.0,113340.0,1.009159]
[1754146277305,0.27966054,113350.0,113340.0,1.009159]
[1754146277526,0.11732675,113350.0,113340.0,0.62582715]
[1754146277773,0.11732675,113350.0,113340.0,0.95403539]
[1754146279127,0.11732675,113350.0,113340.0,0.15829891]
[1754146279331,0.11732675,113350.0,113340.0,0.6280329]
[1754146279578,0.11732675,113350.0,113340.0,0.62582715]
[1754146279803,0.11732675,113350.0,113340.0,0.94903539]
[1754146280242,0.11732675,113350.0,113340.0,0.62482715]
[1754146280686,0.11732675,113350.0,113340.0,0.81371539]
[1754146280914,0.11732675,113350.0,113340.0,0.95303539]
[1754146281130,0.11732675,113350.0,113340.0,0.29661891]
[1754146281343,0.11732675,113350.0,113340.0,0.62482715]
[1754146281550,0.11732675,113350.0,113340.0,0.95603539]
[1754146282231,0.11732675,113350.0,113340.0,0.62782715]
[1754146284422,0.11732675,113350.0,113340.0,0.95603539]
[1754146284871,0.11732675,113350.0,113340.0,0.29961891]
[1754146284874,0.11732675,113350.0,113340.0,0.62782715]
[1754146285128,0.11928675,113350.0,113340.0,0.13763989]
[1754146285362,0.12243675,113350.0,113340.0,0.23051989]
[1754146285595,0.17299675,113350.0,113340.0,0.23051989]
[1754146285817,0.17299675,113350.0,113340.0,0.24796891]
[1754146286061,0.12243675,113350.0,113340.0,0.24796891]
[1754146286300,0.11928675,113350.0,113340.0,0.29823891]
[1754146286543,0.11732675,113350.0,113340.0,0.62942715]
[1754146287030,0.11732675,113350.0,113340.0,0.62642715]
[1754146287515,0.11732675,113350.0,113340.0,0.62242715]
[1754146287746,0.11732675,113350.0,113340.0,0.62542715]
[1754146288418,0.13113854,113350.0,113340.0,0.95663539]
[1754146288676,0.13113854,113350.0,113340.0,0.62842715]
[1754146289146,0.13113854,113350.0,113340.0,0.30021891]
[1754146289373,0.13113854,113350.0,113340.0,0.62842715]
[1754146290547,0.13113854,113350.0,113340.0,0.95663539]
[1754146290974,0.13113854,113350.0,113340.0,0.62842715]
[1754146291266,0.13113854,113350.0,113340.0,0.95663539]
[1754146292523,0.13113854,113350.0,113340.0,0.62842715]
[1754146294192,0.13113854,113350.0,113340.0,0.62838715]
[1754146295307,0.13113854,113350.0,113340.0,0.72156715]
[1754146295516,0.13113854,113350.0,113340.0,0.62838715]
[1754146295960,0.13113854,113350.0,113340.0,0.95659539]
[1754146296413,0.13309854,113350.0,113340.0,0.43585715]
[1754146296624,0.18680854,113350.0,113340.0,0.57513715]
[1754146296838,0.12243675,113350.0,113340.0,0.57513715]
[1754146297046,0.12243675,113350.0,113340.0,0.62328715]
[1754146297286,0.12243675,113350.0,113340.0,0.43585715]
[1754146297513,0.12243675,113350.0,113340.0,0.57513715]
[1754146297731,0.12243675,113350.0,113340.0,0.48400715]
[1754146297938,0.12243675,113350.0,113340.0,0.62328715]
[1754146298579,0.11928675,113350.0,113340.0,0.62838715]
[1754146298798,0.11732675,113350.0,113340.0,0.62838715]
[1754146299709,0.13113723,113350.0,113340.0,0.62838715]
[1754146303091,0.13113723,113350.0,113340.0,0.95659539]
[1754146303534,0.13113723,113350.0,113340.0,0.62838715]
[1754146303748,0.13309723,113350.0,113340.0,0.48612715]
[1754146303968,0.13309723,113350.0,113340.0,0.62540715]
[1754146304638,0.13624723,113350.0,113340.0,0.24692891]
[1754146304890,0.13309723,113350.0,113340.0,0.62540715]
[1754146305103,0.13309723,113350.0,113340.0,0.62838715]
[1754146305104,0.13113723,113350.0,113340.0,0.62838715]
[1754146305321,0.13113723,113350.0,113340.0,0.48910715]
[1754146305592,0.13113723,113350.0,113340.0,0.62838715]
[1754146305811,0.13113723,113350.0,113340.0,0.30017891]
[1754146306027,0.13309723,113350.0,113340.0,0.30017891]
[1754146306242,0.13309723,113350.0,113340.0,0.62838715]
[1754146308380,0.11928675,113350.0,113340.0,0.62838715]
[1754146308976,0.11732675,113350.0,113340.0,0.62838715]
[1754146309173,0.11732675,113350.0,113340.0,0.95659539]
[1754146310236,0.11732675,113350.0,113340.0,0.48910715]
[1754146310464,0.11928675,113350.0,113340.0,0.29715891]
[1754146310902,0.11928675,113350.0,113340.0,0.48612715]
[1754146311131,0.13309736,113350.0,113340.0,0.62536715]
[1754146311784,0.13113736,113350.0,113340.0,0.95655539]
[1754146312100,0.13309736,113350.0,113340.0,0.29715891]
[1754146312357,0.13309736,113350.0,113340.0,0.62536715]
[1754146312588,0.13624736,113350.0,113340.0,0.57509715]
[1754146312802,0.13624736,113350.0,113340.0,0.62324715]
[1754146313017,0.13309736,113350.0,113340.0,0.62324715]
[1754146313686,0.13309736,113350.0,113340.0,0.29503891]
[1754146313904,0.13309736,113350.0,113340.0,0.62324715]
[1754146315011,0.13309736,113350.0,113340.0,0.62531715]
[1754146315681,0.13309736,113350.0,113340.0,0.62855715]
[1754146317224,0.13309736,113350.0,113340.0,0.30034891]
[1754146317466,0.13113736,113350.0,113340.0,0.62855715]
[1754146320043,0.13318736,113350.0,113340.0,0.62531715]
[1754146320285,0.18528736,113350.0,113340.0,0.24688891]
[1754146320772,0.18528736,113350.0,113340.0,0.22943989]
[1754146321480,0.13641736,113350.0,113340.0,0.22943989]
[1754146321724,0.13641736,113350.0,113340.0,0.22643989]
[1754146322183,0.13641736,113350.0,113340.0,0.22343989]
[1754146322913,0.13318736,113350.0,113340.0,0.60362813]
[1754146323147,0.13318736,113350.0,113340.0,0.27741989]
[1754146323412,0.13641736,113350.0,113340.0,0.22643989]
[1754146323671,0.18528736,113350.0,113340.0,0.22643989]
[1754146323880,0.17147675,113350.0,113340.0,0.22643989]
[1754146324312,0.12260675,113350.0,113340.0,0.27841989]
[1754146325155,0.12260675,113350.0,113340.0,0.22643989]
[1754146325383,0.17147675,113350.0,113340.0,0.22643989]
[1754146326606,0.49968499,113350.0,113340.0,0.003]
[1754146326856,0.54968499,113350.0,113340.0,0.003]
[1754146327059,0.54968499,113350.0,113340.0,0.1422]
[1754146328111,0.68888499,113350.0,113340.0,0.003]
[1754146328334,2.48908466,113350.0,113340.0,0.003]
[1754146328780,2.49524137,113350.0,113340.0,0.003]
[1754146329008,1.83882489,113350.0,113340.0,0.003]
[1754146329229,2.48908466,113350.0,113340.0,0.003]
[1754146329447,2.48908466,113350.0,113340.0,0.001]
[1754146330333,2.16087642,113350.0,113340.0,0.001]
[1754146330552,0.05,113330.0,113320.0,0.1392479]
[1754146330769,0.05,113330.0,113320.0,4.79e-05]
[1754146330770,0.05748547,113330.0,113320.0,4.79e-05]
[1754146331022,0.10635547,113330.0,113320.0,4.79e-05]
[1754146331244,0.4483796,113330.0,113320.0,4.79e-05]
[1754146331464,0.44617413,113330.0,113320.0,4.79e-05]
[1754146331678,0.44617413,113330.0,113320.0,0.07009124]
[1754146332585,0.06909589,113330.0,113320.0,0.07009124]
[1754146332810,0.06909589,113330.0,113320.0,0.12738124]
[1754146332811,0.01381589,113330.0,113320.0,0.12738124]
[1754146333043,0.01381589,113330.0,113320.0,0.45558948]
[1754146333262,0.5,113340.0,113320.0,0.45558948]
[1754146333482,0.5,113340.0,113330.0,0.1392]
[1754146333712,0.5,113340.0,113330.0,0.19649]
[1754146333931,0.55,113340.0,113330.0,0.19649]